bitfinex/quotes_ETHUSD_20250223
["timestamp","ask_amount","ask_price","bid_price","bid_amount"]
[1740334816171,0.80552263,2826.8,2826.4,3.53804]
[1740334816664,0.80552263,2826.8,2826.5,3.53793]
[1740334817017,8.05522629,2826.9,2826.6,3.53775]
[1740334817273,4.25,2826.9,2826.3,3.53817]
[1740334817436,4.25,2826.9,2826.8,3.53756]
[1740334817968,4.25,2826.9,2826.7,0.7159]
[1740334818276,4.25,2826.9,2826.7,4.25349]
[1740334818639,0.7847,2826.8,2826.3,0.262]
[1740334818841,3.53787,2826.6,2826.3,0.262]
[1740334819167,6.29082398,2826.7,2826.3,0.262]
[1740334819871,6.29082398,2826.7,2826.1,0.7159]
[1740334820073,6.29082398,2826.7,2826.1,4.25434]
[1740334820285,3.53819,2826.3,2825.8,4.25472]
[1740334820436,3.53835,2826.2,2826.1,0.11070325]
[1740334820636,12.11329,2826.3,2826.1,0.11070325]
[1740334820837,5.0368,2826.3,2826.1,0.11070325]
[1740334821057,9.7078664,2826.3,2826.1,0.11070325]
[1740334821253,9.7078664,2826.3,2826.2,0.04140128]
[1740334821436,9.7078664,2826.3,2826.1,0.11070325]
[1740334821646,4.25,2826.3,2826.1,0.11070325]
[1740334821960,4.25,2826.3,2826.2,0.04140128]
[1740334822473,4.25,2826.3,2826.1,3.53843]
[1740334822671,4.25,2826.3,2826.2,0.0416517]
[1740334823756,4.25,2826.3,2825.9,3.53868]
[1740334824071,4.25,2826.3,2826.2,0.0416517]
[1740334824266,4.25,2826.3,2825.8,3.53877]
[1740334824470,4.25,2826.3,2826.2,0.0416517]
[1740334824664,5.04299354,2826.3,2825.9,3.53866]
[1740334824868,7.78824,2826.3,2826.2,0.0416517]
[1740334825176,4.25,2826.3,2826.2,0.0416517]
[1740334825466,4.25,2826.3,2825.9,7.07726]
[1740334825643,4.25,2826.3,2826.2,0.04016414]
[1740334825842,4.25,2826.3,2825.9,3.53863]
[1740334826068,4.25,2826.3,2826.2,0.04016414]
[1740334826259,4.25,2826.3,2825.9,3.53863]
[1740334826455,4.25,2826.3,2826.2,0.04016414]
[1740334826630,4.25,2826.3,2825.9,3.53863]
[1740334826826,4.25,2826.3,2826.2,0.04016414]
[1740334827353,4.25,2826.3,2825.9,3.53863]
[1740334827666,4.25,2826.3,2826.2,0.04016414]
[1740334827869,4.25,2826.3,2825.9,7.07726]
[1740334827870,4.25,2826.3,2825.9,3.53863]
[1740334828046,4.25,2826.3,2826.2,0.04016414]
[1740334828571,4.25,2826.3,2826.1,3.53839]
[1740334828727,4.25,2826.3,2826.2,0.04016414]
[1740334828927,4.25,2826.3,2825.9,3.5386]
[1740334829146,4.25,2826.3,2826.0,0.04016414]
[1740334829345,4.25,2826.3,2826.1,3.53844]
[1740334830056,4.25,2826.3,2826.2,3.57848414]
[1740334831575,4.25,2826.3,2826.2,4.29438414]
[1740334831960,4.25,2826.3,2826.2,3.57848414]
[1740334832162,4.25,2826.3,2826.2,0.04016414]
[1740334832335,4.25,2826.5,2826.2,3.61798224]
[1740334834375,3.5381,2826.4,2826.2,0.07966224]
[1740334834578,4.33439,2826.3,2826.2,0.07966224]
[1740334834818,4.33439,2826.3,2825.6,3.53897]
[1740334834819,3.5384,2826.2,2825.6,3.53897]
[1740334835022,3.53848,2826.1,2825.6,3.53897]
[1740334835324,4.25,2826.1,2825.7,0.11071863]
[1740334835501,4.33498,2825.9,2825.8,0.07686714]
[1740334836201,0.7962,2825.9,2825.7,0.11071863]
[1740334836405,0.7962,2825.9,2825.8,0.07686714]
[1740334836607,4.33489,2825.9,2825.8,0.07686714]
[1740334836909,0.7962,2825.9,2825.8,0.07686714]
[1740334837084,0.7962,2825.9,2825.5,4.34583]
[1740334837287,0.7962,2825.9,2825.6,0.07686714]
[1740334838299,5.57367145,2825.9,2825.6,0.07686714]
[1740334839396,7.78882,2825.8,2825.6,0.07686714]
[1740334839596,3.53894,2825.7,2825.6,0.07686714]
[1740334839799,3.53907,2825.6,2825.5,0.80666]
[1740334842009,7.08840398,2825.6,2825.5,0.80666]
[1740334842211,8.5937862,2825.6,2825.5,0.80666]
[1740334844045,12.8437862,2825.6,2825.5,0.80666]
[1740334844859,10.09065222,2825.6,2825.5,0.80666]
[1740334845552,10.79281817,2825.6,2825.5,1.51265324]
[1740334845754,13.54595215,2825.6,2825.5,1.58215441]
[1740334846075,13.54595215,2825.6,2825.5,1.51265324]
[1740334846434,13.54595215,2825.6,2825.5,1.58215441]
[1740334846619,13.54595215,2825.6,2825.5,1.51265324]
[1740334847069,16.54595215,2825.6,2825.5,1.29993637]
[1740334847270,16.54595215,2825.6,2824.3,3.54068]
[1740334847271,4.31786,2824.8,2824.3,3.54068]
[1740334847482,3.54022,2824.7,2824.2,4.25661]
[1740334847782,3.54022,2824.7,2824.3,0.06701899]
[1740334847985,8.56786,2824.8,2824.4,3.54055]
[1740334848478,3.54032,2824.6,2824.5,0.06701899]
[1740334849030,3.54032,2824.6,2824.1,3.54094]
[1740334849235,7.79021,2824.7,2824.2,3.5407]
[1740334849583,3.54039,2824.6,2824.2,0.06275381]
[1740334850498,4.25,2824.7,2824.3,7.08125]
[1740334850695,4.25,2824.7,2824.3,3.54061]
[1740334850901,4.25,2824.7,2824.4,0.7159]
[1740334851075,4.25,2824.7,2824.4,4.31921381]
[1740334851459,4.25,2824.7,2824.4,4.31914381]
[1740334851888,4.25,2824.7,2824.5,3.54042]
[1740334852211,4.25,2824.7,2824.6,0.0641103]
[1740334853567,4.25,2824.7,2824.6,3.6044303]
[1740334854099,4.25,2824.9,2824.8,3.54007]
[1740334854301,4.25,2825.4,2825.3,3.53944]
[1740334854661,4.25,2825.7,2825.5,3.53912]
[1740334854984,4.25,2825.7,2825.6,3.53907]
[1740334855158,4.25,2825.7,2825.6,3.60353455]
[1740334856201,4.25,2825.7,2825.6,0.06446455]
[1740334857185,4.25,2825.7,2825.6,3.60353455]
[1740334857362,4.25,2825.7,2825.6,0.06446455]
[1740334857901,4.25,2825.7,2825.6,3.60353455]
[1740334858603,4.37002,2826.3,2825.7,3.53883]
[1740334858604,4.25,2826.2,2825.7,3.53883]
[1740334858793,11.32671,2826.2,2825.7,3.53893]
[1740334859105,3.53849,2826.1,2825.8,0.06380784]
[1740334859465,3.53849,2826.1,2825.5,3.53909]
[1740334859990,4.25,2826.2,2825.7,3.53893]
[1740334860190,7.78838,2826.2,2825.7,3.53893]
[1740334860622,7.78838,2826.2,2825.8,0.06379921]
[1740334860836,3.53845,2826.1,2825.8,0.06379921]
[1740334861027,3.53845,2826.1,2825.6,7.07804]
[1740334861234,3.53845,2826.1,2825.9,0.06379921]
[1740334861532,3.53845,2826.1,2825.5,0.779422]
[1740334861734,3.53845,2826.1,2825.6,3.539]
[1740334861935,3.53845,2826.1,2825.7,3.60270921]
[1740334862140,7.78845,2826.1,2825.7,3.60270921]
[1740334862835,4.25,2826.1,2825.7,3.60270921]
[1740334864036,4.25,2826.1,2825.8,7.0775]
[1740334864218,4.25,2826.1,2825.8,3.53873]
[1740334864587,4.25,2826.1,2825.9,0.06379921]
[1740334865820,4.25,2826.1,2826.0,3.53857]
[1740334866236,4.36943,2826.8,2826.2,3.53822]
[1740334866436,4.25,2826.7,2826.2,3.53822]
[1740334866752,4.25,2826.7,2826.3,3.60092147]
[1740334867251,7.00313398,2826.7,2826.3,0.06283147]
[1740334867419,4.3213934,2826.6,2826.3,0.06283147]
[1740334867607,1.05205095,2826.6,2826.0,0.259]
[1740334867805,1.05205095,2826.6,2825.7,3.5389]
[1740334867806,2.75313398,2826.4,2825.7,0.9759]
[1740334868004,3.53819,2826.3,2825.8,3.5388]
[1740334868443,2.75313398,2826.4,2826.1,3.53836]
[1740334868660,1.05205095,2826.6,2826.3,3.53818]
[1740334868820,1.05205095,2826.6,2826.4,3.53806]
[1740334869363,0.65,2827.9,2826.2,4.25412]
[1740334869364,0.7682,2827.1,2826.7,3.5376]
[1740334869523,4.30546,2827.1,2826.6,3.53773]
[1740334869723,0.7682,2827.1,2826.7,3.5376]
[1740334870622,3.53739,2827.0,2826.5,3.53786]
[1740334870821,3.53749,2826.9,2826.4,3.53797]
[1740334871621,0.855532,2827.0,2826.6,3.5378]
[1740334872031,3.53792,2826.6,2826.2,0.26]
[1740334872236,0.6291054,2826.5,2826.3,3.53811]
[1740334872454,3.53765,2826.8,2826.2,4.51421]
[1740334872662,3.53782,2826.6,2826.2,4.51421]
[1740334873057,3.53782,2826.6,2826.2,0.26]
[1740334873262,3.53782,2826.6,2826.2,3.7983]
[1740334873683,3.53765,2826.8,2826.2,3.79825]
[1740334873890,4.603765,2826.7,2826.3,3.53818]
[1740334874046,4.25,2826.7,2826.5,3.53784]
[1740334875060,4.25,2826.7,2826.4,3.53805]
[1740334875255,4.25,2826.7,2826.5,4.25383]
[1740334875565,4.25,2826.7,2826.6,3.53781]
[1740334878094,4.25,2827.0,2826.8,3.53744]
[1740334878256,3.52353398,2827.6,2827.4,3.5368]
[1740334878454,0.7704,2827.6,2827.2,0.26]
[1740334878659,0.005,2827.7,2827.3,3.53694]
[1740334879152,0.005,2827.7,2827.4,4.25264]
[1740334880001,0.005,2827.7,2827.2,0.26]
[1740334880002,3.53656,2827.6,2827.2,0.26]
[1740334880201,3.53656,2827.6,2827.0,3.79831]
[1740334880387,4.41200232,2827.7,2827.0,0.261]
[1740334880722,0.87556232,2827.7,2827.3,3.53694]
[1740334880928,0.87556232,2827.7,2827.2,3.53698]
[1740334881122,3.54145,2827.7,2827.2,3.53698]
[1740334881339,0.005,2827.7,2827.3,0.05894688]
[1740334881517,3.53679,2827.5,2827.0,3.79825]
[1740334881828,3.53679,2827.5,2827.1,0.05894688]
[1740334882510,0.7594,2827.4,2827.1,0.05894688]
[1740334882719,0.7594,2827.4,2826.9,0.7159]
[1740334882932,5.0094,2827.4,2827.0,0.05894688]
[1740334883132,5.0094,2827.4,2827.0,3.59624688]
[1740334883743,5.0094,2827.4,2827.1,3.53715]
[1740334884035,4.25,2827.4,2827.0,3.5373]
[1740334884208,4.25,2827.4,2827.2,0.05894688]
[1740334884401,4.25,2827.4,2827.0,3.5373]
[1740334884591,4.25,2827.4,2827.3,0.05894688]
[1740334884927,4.25,2827.4,2826.9,0.7159]
[1740334884928,3.53706,2827.3,2826.9,0.7159]
[1740334885148,3.53706,2827.3,2826.8,3.53753]
[1740334885357,7.78706,2827.3,2826.8,3.5375]
[1740334885710,7.78704,2827.3,2826.8,3.53754]
[1740334886354,3.53716,2827.2,2826.7,4.51355]
[1740334886556,3.53716,2827.2,2826.7,4.5135]
[1740334887140,3.5377,2826.7,2826.3,0.26]
[1740334887557,3.53787,2826.6,2826.3,0.26]
[1740334887862,7.78787,2826.6,2826.3,0.26]
[1740334888024,4.25,2826.6,2826.3,0.26]
[1740334888220,7.78782,2826.6,2826.3,0.26]
[1740334888423,4.25,2826.6,2826.2,3.53823]
[1740334888868,4.25,2826.6,2826.2,3.53828]
[1740334889038,4.25,2826.6,2826.3,3.53818]
[1740334890059,4.25,2826.6,2826.3,3.53812]
[1740334890451,4.25,2826.6,2826.3,3.53808]
[1740334890651,4.25,2826.6,2826.4,3.53806]
[1740334890864,4.25,2826.6,2826.5,3.53794]
[1740334891168,4.25,2826.6,2826.4,3.53806]
[1740334891462,4.25,2826.6,2826.5,3.53794]
[1740334891851,4.25,2827.1,2826.7,3.53763]
[1740334892050,4.25,2827.1,2826.8,3.53751]
[1740334892255,4.25,2827.1,2826.6,0.7159]
[1740334892435,4.25,2827.1,2826.7,3.53769]
[1740334892637,4.25,2827.1,2826.8,3.53751]
[1740334893776,5.07266196,2827.1,2826.7,3.53769]
[1740334894072,5.07266196,2827.1,2826.6,0.7159]
[1740334894073,8.60993196,2827.1,2826.6,0.7159]
[1740334894228,3.53752,2826.9,2826.2,3.53823]
[1740334894430,3.53759,2826.8,2826.2,3.53823]
[1740334894667,3.53759,2826.8,2826.4,3.53806]
[1740334894852,3.53788,2826.6,2826.1,0.82658901]
[1740334895090,3.53794,2826.5,2826.1,4.62596901]
[1740334895307,3.53788,2826.6,2826.1,4.62596901]
[1740334895485,7.07577,2826.6,2826.1,4.62596901]
[1740334895689,3.53798,2826.5,2826.2,0.05459494]
[1740334896471,7.78782,2826.6,2826.1,3.53838]
[1740334896670,7.78782,2826.6,2826.3,0.05459494]
[1740334896874,4.25,2826.6,2826.0,3.79954]
[1740334897223,7.78788,2826.6,2826.1,3.53836]
[1740334897403,7.78788,2826.6,2826.1,3.59295494]
[1740334897918,4.25,2826.6,2826.2,3.53831]
[1740334898323,4.25,2826.6,2826.3,0.0550438]
[1740334898700,4.25,2826.6,2826.2,3.53831]
[1740334899023,7.78787,2826.6,2826.1,3.53843]
[1740334899183,7.78787,2826.6,2826.3,0.0550438]
[1740334899384,7.78787,2826.6,2826.1,3.53843]
[1740334899599,7.78787,2826.6,2826.2,0.05534595]
[1740334899600,4.25,2826.6,2826.2,0.05534595]
[1740334899801,3.53794,2826.5,2826.2,0.05534595]
[1740334900004,3.53819,2826.3,2826.2,0.05534595]
[1740334900206,0.8293,2826.4,2825.9,3.53861]
[1740334900426,4.36738,2826.4,2826.2,0.05534595]
[1740334900630,8.61738,2826.4,2825.9,3.53861]
[1740334900792,8.61738,2826.4,2826.3,0.05534595]
[1740334901117,8.61738,2826.4,2825.9,3.53861]
[1740334901118,10.19046929,2826.4,2825.9,3.53861]
[1740334901323,10.19046929,2826.4,2826.3,0.05534595]
[1740334901497,10.19046929,2826.4,2825.9,3.53861]
[1740334901824,6.65238929,2826.4,2826.0,3.53854]
[1740334902019,6.65238929,2826.4,2826.0,3.59388595]
[1740334902322,5.0793,2826.4,2826.1,3.53843]
[1740334902518,5.0793,2826.4,2826.1,3.53844]
[1740334902751,5.0793,2826.4,2826.1,7.07688]
[1740334902954,5.0793,2826.4,2826.2,0.05534595]
[1740334903622,4.25,2826.4,2826.3,3.53819]
[1740334904239,4.25,2826.4,2826.3,3.59353595]
[1740334906390,4.25,2826.4,2826.3,4.37830955]
[1740334906516,4.25,2826.8,2826.3,4.37830955]
[1740334906713,4.25,2826.8,2826.4,3.53803]
[1740334906912,4.25,2826.8,2826.4,3.53795]
[1740334907155,4.25,2826.8,2826.7,3.53769]
[1740334907756,4.25,2826.8,2826.7,3.59303595]
[1740334907934,4.25,2826.8,2826.7,0.05534595]
[1740334908335,4.25,2826.8,2826.4,3.53803]
[1740334908658,7.78756,2826.8,2826.5,0.05534595]
[1740334908860,3.53781,2826.6,2826.5,0.05534595]
[1740334909157,3.53781,2826.6,2826.5,0.05518195]
[1740334909341,3.53781,2826.6,2826.2,3.79831]
[1740334909657,3.53781,2826.6,2826.3,0.05518195]
[1740334910200,0.779,2826.7,2826.4,0.05518195]
[1740334910715,4.25,2826.8,2826.4,1.48424115]
[1740334910921,4.25,2826.8,2826.7,3.53769]
[1740334911546,4.25,2826.8,2826.7,3.59287195]
[1740334911744,4.25,2827.1,2826.7,0.05518195]
[1740334911950,4.25,2827.1,2827.0,3.53731]
[1740334912157,4.25,2827.1,2826.9,3.53732]
[1740334912457,4.25,2827.1,2827.0,3.59249195]
[1740334912826,4.25,2827.1,2827.0,0.83976315]
[1740334913022,4.25,2827.1,2827.0,4.37707315]
[1740334913624,4.25,2827.1,2827.0,3.59249195]
[1740334914263,4.25,2827.1,2827.0,0.05518195]
[1740334915045,4.25,2827.1,2826.6,4.51461]
[1740334915370,4.25,2827.1,2826.7,3.5376]
[1740334915531,4.25,2827.1,2826.6,4.51461]
[1740334915727,7.78725,2827.1,2826.8,0.05518195]
[1740334916044,7.78725,2827.1,2826.9,0.05518195]
[1740334916423,7.78725,2827.1,2826.6,4.51461]
[1740334916625,7.78725,2827.1,2827.0,0.05518195]
[1740334916831,7.78725,2827.1,2826.6,4.51461]
[1740334917364,4.25,2827.1,2826.7,3.59282195]
[1740334917688,4.25,2827.1,2826.7,0.05518195]
[1740334917863,7.78722,2827.1,2826.7,0.05518195]
[1740334918030,7.78722,2827.1,2826.5,3.53788]
[1740334918231,7.78722,2827.1,2826.8,0.05518195]
[1740334918547,8.645822,2827.1,2826.9,0.05518195]
[1740334918748,8.645822,2827.1,2826.6,3.53775]
[1740334918948,5.108602,2827.1,2826.7,3.53767]
[1740334919251,4.25,2827.1,2826.7,3.59285195]
[1740334919457,4.25,2827.1,2826.7,7.13046195]
[1740334920174,4.25,2827.1,2826.7,3.59279195]
[1740334920330,4.25,2827.1,2826.8,3.53756]
[1740334920664,4.25,2827.1,2826.9,3.59208124]
[1740334920837,4.25,2827.1,2826.9,0.05468124]
[1740334921027,4.25,2827.1,2826.9,3.59212124]
[1740334921231,4.25,2827.1,2827.0,3.53731]
[1740334921436,4.25,2827.5,2827.2,3.53699]
[1740334921875,4.25,2827.5,2827.3,0.05468124]
[1740334922173,4.25,2827.5,2827.2,3.53697]
[1740334922376,7.7868,2827.5,2827.3,0.05468124]
[1740334922690,7.7868,2827.5,2827.0,3.5372]
[1740334922691,0.53078821,2827.4,2827.0,3.5372]
[1740334922856,4.25,2827.5,2827.4,0.05468124]
[1740334923177,7.7867,2827.5,2827.4,0.05468124]
[1740334923364,3.53701,2827.3,2826.9,0.26]
[1740334923562,3.53701,2827.3,2826.7,3.5376]
[1740334923563,0.7929,2827.2,2826.7,3.5376]
[1740334923764,0.7929,2827.2,2826.8,3.79749]
[1740334924062,0.7929,2827.2,2826.9,0.05468124]
[1740334924269,4.763041,2827.2,2826.9,0.05468124]
[1740334924450,8.300181,2827.2,2826.9,0.05468124]
[1740334924651,4.763031,2827.2,2826.7,3.53768]
[1740334925229,4.763031,2827.2,2826.8,3.53756]
[1740334925338,4.763031,2827.2,2826.8,3.59224124]
[1740334925878,3.53721,2827.1,2826.8,0.05468124]
[1740334926244,3.53721,2827.1,2826.6,3.7978]
[1740334926477,4.762961,2827.2,2826.9,0.05468124]
[1740334926775,1.225891,2827.2,2827.0,0.05468124]
[1740334926972,1.225891,2827.2,2826.8,3.5375]
[1740334927139,0.7802,2827.4,2827.1,3.53711]
[1740334927342,8.56703,2827.4,2826.9,3.53739]
[1740334927578,8.56703,2827.4,2827.0,0.05468124]
[1740334929080,5.0302,2827.4,2827.0,3.59199124]
[1740334929266,0.7852,2827.7,2827.1,3.53719]
[1740334929452,3.53677,2827.5,2827.0,0.77058124]
[1740334929661,3.53677,2827.5,2827.0,0.7159]
[1740334929861,3.53683,2827.4,2827.1,0.05468124]
[1740334930158,7.07334,2827.6,2827.0,3.53731]
[1740334930366,3.53666,2827.6,2827.2,3.59173124]
[1740334930588,3.53666,2827.6,2827.1,3.59166999]
[1740334930782,3.53666,2827.6,2827.2,0.05449999]
[1740334930960,3.53669,2827.5,2827.2,0.05449999]
[1740334931279,3.53693,2827.4,2826.9,3.79743]
[1740334931444,3.537,2827.3,2826.9,0.26]
[1740334931648,3.537,2827.3,2826.8,4.25346]
[1740334931951,3.53721,2827.1,2825.9,8.14313398]
[1740334932146,3.5374,2827.0,2826.5,3.53793]
[1740334932488,3.53721,2827.1,2826.5,4.25383]
[1740334932838,3.53739,2827.0,2826.5,4.25383]
[1740334933123,3.53721,2827.1,2826.6,3.53772]
[1740334933327,3.53721,2827.1,2826.6,3.79772]
[1740334933826,3.53721,2827.1,2826.2,4.25419]
[1740334933827,3.53772,2826.7,2826.2,4.25419]
[1740334934131,3.53783,2826.6,2826.0,1.5302134]
[1740334934429,3.53789,2826.6,2826.1,0.26]
[1740334934579,3.53814,2826.4,2826.1,0.26]
[1740334934925,4.2907,2826.3,2825.9,0.261]
[1740334935312,4.2907,2826.3,2825.8,4.06529962]
[1740334935677,4.2907,2826.3,2825.9,0.26325743]
[1740334935678,3.53857,2826.0,2825.9,0.26325743]
[1740334935904,3.53843,2826.2,2825.9,0.37396864]
[1740334936119,3.53848,2826.1,2825.9,0.37396864]
[1740334936320,0.7525,2826.3,2825.9,3.91262864]
[1740334936511,4.29077,2826.3,2825.9,0.37396864]
[1740334936700,0.7525,2826.3,2825.9,0.37396864]
[1740334936899,0.7525,2826.5,2826.0,3.53845]
[1740334937126,1.960328,2826.5,2825.9,4.62620121]
[1740334937293,3.53813,2826.4,2825.9,4.62620121]
[1740334937496,3.53813,2826.4,2825.9,4.51549]
[1740334937723,0.70682064,2826.1,2825.9,4.51549]
[1740334937890,0.70682064,2826.1,2826.0,3.53857]
[1740334938291,0.70682064,2826.1,2826.0,4.343976]
[1740334938824,3.53876,2825.9,2825.7,0.11071121]
[1740334939023,4.24534064,2826.1,2825.6,3.8]
[1740334940128,0.70682064,2826.1,2825.7,3.53892]
[1740334940326,0.70682064,2826.1,2825.7,3.53888]
[1740334940628,0.70682064,2826.1,2825.8,0.04989551]
[1740334941030,0.70682064,2826.1,2825.7,3.53888]
[1740334941433,3.53857,2826.0,2825.9,0.04989551]
[1740334941728,3.53899,2825.7,2825.3,0.261]
[1740334942225,3.53907,2825.6,2825.3,0.261]
[1740334942432,3.53908,2825.6,2825.3,0.261]
[1740334942631,3.53899,2825.7,2825.3,0.261]
[1740334942929,3.5391,2825.6,2825.3,0.261]
[1740334943226,3.5391,2825.6,2825.1,3.53966]
[1740334943227,5.073349,2825.6,2825.1,3.53966]
[1740334943430,7.90472,2825.6,2825.1,3.53966]
[1740334944080,4.36554,2825.6,2825.0,3.80078]
[1740334944281,3.5395,2825.3,2824.9,0.7129747]
[1740334944526,3.5395,2825.3,2824.9,0.261]
[1740334944837,3.5392,2825.5,2825.0,3.53972]
[1740334945046,4.329674,2825.5,2825.0,3.53972]
[1740334945248,3.53944,2825.4,2824.8,3.80101]
[1740334945384,4.329674,2825.5,2825.0,3.53981]
[1740334946134,4.329674,2825.5,2825.0,3.53972]
[1740334946629,7.868954,2825.5,2825.0,3.53972]
[1740334946917,4.329674,2825.5,2825.0,3.53972]
[1740334947121,4.329674,2825.5,2825.1,3.53968]
[1740334948004,4.329674,2825.5,2825.0,3.5398]
[1740334948209,7.868984,2825.5,2825.0,3.5398]
[1740334948521,4.329674,2825.5,2825.0,3.5398]
[1740334948720,7.868934,2825.5,2825.0,3.5398]
[1740334948926,7.868954,2825.5,2825.0,3.5398]
[1740334949221,4.329674,2825.5,2825.0,7.07955]
[1740334949522,4.329674,2825.5,2825.0,7.07948]
[1740334949882,0.790474,2825.5,2825.0,3.53973]
[1740334950088,5.082,2825.8,2825.1,0.7159]
[1740334950333,4.25,2825.8,2825.5,3.53913]
[1740334950526,4.25,2825.8,2825.5,3.53912]
[1740334950906,4.25,2825.8,2825.6,3.53906]
[1740334951209,4.25,2825.8,2825.7,3.53894]
[1740334951398,4.25,2825.8,2825.3,4.25527]
[1740334951604,4.25,2825.8,2825.4,3.79931]
[1740334951807,4.25,2825.8,2825.6,3.53904]
[1740334952900,4.25,2825.8,2825.5,3.53909]
[1740334953095,0.7674,2825.7,2825.1,0.261]
[1740334953295,4.04087,2825.6,2825.1,0.261]
[1740334953595,3.53913,2825.6,2825.1,3.53963]
[1740334953813,3.53939,2825.4,2825.0,0.261]
[1740334954006,3.53939,2825.4,2825.0,3.80081]
[1740334954211,3.53917,2825.6,2825.1,3.53969]
[1740334954412,3.53917,2825.6,2825.1,3.53963]
[1740334954640,0.430657,2825.5,2825.1,3.53963]
[1740334954934,3.53913,2825.6,2825.1,3.53963]
[1740334955642,3.53913,2825.6,2825.2,0.05105098]
[1740334955931,3.53913,2825.6,2825.2,3.59059098]
[1740334956134,3.53913,2825.6,2825.2,0.05105098]
[1740334956337,3.53919,2825.5,2825.2,0.05105098]
[1740334956536,3.53932,2825.4,2825.2,0.05105098]
[1740334956701,3.53932,2825.4,2825.0,3.53974]
[1740334956903,3.53932,2825.4,2825.3,0.05105098]
[1740334957946,3.53913,2825.6,2825.3,0.05105098]
[1740334958113,3.53913,2825.6,2825.2,3.53957]
[1740334958315,3.53913,2825.6,2825.4,0.05105098]
[1740334958513,1.4848554,2825.6,2825.2,3.53957]
[1740334958712,4.30636,2825.7,2825.5,0.05105098]
[1740334958713,0.7674,2825.7,2825.5,0.05105098]
[1740334959039,3.53907,2825.6,2825.1,3.53969]
[1740334959249,4.30634,2825.7,2825.2,3.53951]
[1740334959424,4.30634,2825.7,2825.1,3.53969]
[1740334959609,3.5391,2825.6,2825.1,3.53969]
[1740334959948,3.5391,2825.6,2825.0,3.53976]
[1740334959949,3.5393,2825.5,2825.0,3.53976]
[1740334960126,3.5391,2825.6,2825.1,3.53963]
[1740334960653,7.07828,2825.6,2825.1,3.53963]
[1740334960842,3.5391,2825.6,2825.1,3.53963]
[1740334961553,3.5391,2825.6,2825.2,3.53956]
[1740334962474,3.5391,2825.6,2825.0,3.53982]
[1740334962653,3.5391,2825.6,2825.1,3.53968]
[1740334963855,4.30638,2825.7,2825.2,3.53949]
[1740334964022,4.30638,2825.7,2825.3,3.53944]
[1740334964217,5.7912204,2825.7,2825.3,3.53944]
[1740334965456,9.3302304,2825.7,2825.2,3.53956]
[1740334965656,3.53913,2825.6,2825.1,3.53968]
[1740334966235,3.53913,2825.6,2825.1,3.53964]
[1740334966558,3.53913,2825.6,2825.0,0.26]
[1740334966756,3.53919,2825.5,2825.1,3.53968]
[1740334966957,3.53919,2825.5,2825.0,0.26]
[1740334967166,3.53932,2825.4,2825.0,3.79981]
[1740334967455,3.53923,2825.5,2825.0,3.79981]
[1740334969150,3.53926,2825.5,2825.0,3.79981]
[1740334969325,3.53926,2825.5,2825.1,3.53969]
[1740334970666,3.53926,2825.5,2825.2,0.05105959]
[1740334971167,3.53935,2825.4,2825.2,0.05105959]
[1740334971349,3.53926,2825.5,2825.2,0.05105959]
[1740334971553,3.53937,2825.4,2824.9,3.53984]
[1740334971730,0.8032,2825.3,2824.9,7.3397]
[1740334971930,0.8032,2825.3,2825.0,0.26352401]
[1740334972161,0.8032,2825.3,2825.0,3.80331401]
[1740334973265,0.8032,2825.3,2825.0,0.26352401]
[1740334973560,0.8032,2825.3,2824.9,3.79989]
[1740334974133,0.8032,2825.3,2825.0,3.53979]
[1740334975071,0.8032,2825.3,2824.9,3.79989]
[1740334975390,4.3427,2825.3,2824.9,3.79989]
[1740334975541,4.3427,2825.3,2824.9,0.26]
[1740334975741,4.3427,2825.3,2824.9,3.79991]
[1740334975937,3.53993,2825.0,2824.6,0.7159]
[1740334976254,3.54022,2824.7,2824.5,0.26]
[1740334976451,7.88326,2824.9,2824.5,0.26]
[1740334976648,3.54014,2824.8,2824.3,4.2565]
[1740334976854,3.54026,2824.7,2824.3,0.26]
[1740334977169,3.54026,2824.7,2824.4,0.26357575]
[1740334977375,7.08056,2824.7,2824.4,0.26357575]
[1740334977671,3.54026,2824.7,2824.4,0.26357575]
[1740334977846,3.54007,2824.8,2824.4,0.26357575]
[1740334978565,3.54007,2824.8,2824.4,3.80414575]
[1740334978775,3.54007,2824.8,2824.4,3.54057]
[1740334978955,0.8032,2824.9,2824.4,3.54057]
[1740334979367,0.8032,2824.9,2824.3,0.26]
[1740334979574,0.8032,2824.9,2824.6,7.08048]
[1740334980488,0.8032,2824.9,2824.3,0.26]
[1740334980652,0.8032,2825.1,2824.7,3.54013]
[1740334981285,4.34289,2825.1,2824.7,3.54013]
[1740334981457,4.34289,2825.1,2824.6,3.54031]
[1740334981794,4.34289,2825.1,2824.7,3.54012]
[1740334981795,0.8032,2825.1,2824.7,3.54012]
[1740334981978,0.8032,2825.1,2824.7,3.54011]
[1740334982177,0.27018381,2825.2,2825.1,3.53969]
[1740334982404,0.27018381,2825.2,2824.8,3.54001]
[1740334982601,0.27018381,2825.2,2824.3,12.19068]
[1740334982602,0.8032,2825.1,2824.4,0.7159]
[1740334982765,0.8032,2825.1,2824.6,0.26]
[1740334982964,3.53982,2825.0,2824.6,0.26]
[1740334983291,3.53996,2824.9,2824.6,0.26]
[1740334983490,1.18585178,2825.1,2824.7,3.54008]
[1740334983794,0.8032,2825.1,2824.7,3.54008]
[1740334983961,0.8032,2825.1,2824.8,3.54]
[1740334984157,0.27018381,2825.2,2825.0,3.53978]